fUST/lending_fUST_20250607
["ID","MTS","AMOUNT","RATE_DAILY","PERIOD"]
[364889298,1749285039733,-151.0,0.00019722,2]
[364889300,1749285039743,-151.0,0.00019722,2]
[364889302,1749285039754,-152.514827,0.00019722,2]
[364889303,1749285039764,-500.0,0.00019725,2]
[364889304,1749285039775,-181.63,0.00019726,2]
[364889305,1749285039786,-440.0,0.00019726,2]
[364889306,1749285039796,-440.0,0.00019726,2]
[364889307,1749285039806,-440.0,0.00019726,2]
[364889308,1749285039816,-440.0,0.00019726,2]
[364889309,1749285039826,-151.0,0.00019726,2]
[364889310,1749285039836,-440.0,0.00019726,2]
[364889311,1749285039846,-151.0,0.00019726,2]
[364889312,1749285039856,-440.0,0.00019726,2]
[364889313,1749285039867,-440.0,0.00019726,2]
[364889314,1749285039877,-440.0,0.00019726,2]
[364889315,1749285039887,-641.56381775,0.00019726,2]
[364889316,1749285039903,-634.47618225,0.00019726,2]
[364889317,1749285039914,-440.0,0.00019726,2]
[364889318,1749285039925,-440.0,0.00019726,2]
[364889319,1749285039935,-440.0,0.00019726,2]
[364889320,1749285039945,-151.0,0.00019726,2]
[364889321,1749285039955,-151.0,0.00019726,2]
[364889322,1749285039965,-440.0,0.00019726,2]
[364889323,1749285039975,-440.0,0.00019726,2]
[364889324,1749285039985,-440.0,0.00019726,2]
[364889325,1749285039995,-440.0,0.00019726,2]
[364889327,1749285040004,-440.0,0.00019726,2]
[364889328,1749285040014,-13878.43,0.00019726,2]
[364889329,1749285040023,-440.0,0.00019726,2]
[364889331,1749285040033,-686.2,0.00019726,2]
[364889333,1749285040043,-440.0,0.00019726,2]
[364889335,1749285040053,-1205.32,0.00019726,2]
[364889337,1749285040064,-440.0,0.00019726,2]
[364889339,1749285040073,-571.90251388,0.00019726,2]
[364889341,1749285040084,-440.0,0.00019726,2]
[364889343,1749285040093,-508.92,0.00019726,2]
[364889345,1749285040103,-440.0,0.00019726,2]
[364889347,1749285040113,-440.0,0.00019726,2]
[364889349,1749285040123,-495.49,0.00019726,2]
[364889351,1749285040132,-440.0,0.00019726,2]
[364889353,1749285040142,-440.0,0.00019726,2]
[364889355,1749285040152,-440.0,0.00019726,2]
[364889357,1749285040162,-943.93,0.00019726,2]
[364889359,1749285040171,-440.0,0.00019726,2]
[364889361,1749285040182,-151.0,0.00019726,2]
[364889363,1749285040191,-151.0,0.00019726,2]
[364889365,1749285040202,-440.0,0.00019726,2]
[364889367,1749285040211,-175.0,0.00019735,2]
[364889369,1749285040221,-500.0,0.00019756,2]
[364889371,1749285040232,-1004.57619613,0.00019831,2]
[364889373,1749285040242,-207.4,0.00019921,2]
[364889375,1749285040252,-500.0,0.00019921,2]
[364889377,1749285040262,-1688.0,0.00019921,2]
[364889379,1749285040272,-409.73247018,0.00019921,2]
[364889381,1749285040282,-151.0,0.00019935,2]
[364889383,1749285040291,-151.0,0.00019935,2]
[364889385,1749285040301,-790.50627724,0.00019976,2]
[364889387,1749285040311,-500.0,0.00019995,2]
[364889389,1749285040321,-260.0,0.00019996,2]
[364889391,1749285040331,-258.4,0.00019996,2]
[364889393,1749285040341,-258.772959,0.00019996,2]
[364889395,1749285040350,-257.896,0.00019996,2]
[364889397,1749285040361,-500.0,0.00019996,2]
[364889399,1749285040371,-440.0,0.00019996,2]
[364889401,1749285040382,-462.92,0.00019996,2]
[364889403,1749285040393,-440.0,0.00019996,2]
[364889405,1749285040402,-151.0,0.00019996,2]
[364889407,1749285040412,-160.0,0.00019996,2]
[364889409,1749285040422,-151.0,0.00019996,2]
[364889411,1749285040432,-151.0,0.00019996,2]
[364889414,1749285040443,-151.0,0.00019996,2]
[364889416,1749285040452,-151.0,0.00019996,2]
[364889417,1749285040462,-151.0,0.00019998,2]
[364889419,1749285040472,-211.094335,0.00019998,2]
[364889421,1749285040482,-211.094335,0.00019998,2]
[364889424,1749285040493,-151.0,0.00019998,2]
[364889426,1749285040502,-151.0,0.00019998,2]
[364889428,1749285040512,-500.0,0.00019999,2]
[364889430,1749285040522,-440.0,0.0002,2]
[364889432,1749285040532,-440.0,0.0002,2]
[364889434,1749285040541,-440.0,0.0002,2]
[364889436,1749285040551,-440.0,0.0002,2]
[364889438,1749285040562,-151.0,0.0002,2]
[364889440,1749285040571,-440.0,0.0002,2]
[364889442,1749285040581,-151.0,0.0002,2]
[364889444,1749285040591,-440.0,0.0002,2]
[364889446,1749285040600,-440.0,0.0002,2]
[364889448,1749285040610,-440.0,0.0002,2]
[364889450,1749285040619,-1276.04,0.0002,2]
[364889452,1749285040630,-270.0,0.0002,2]
[364889454,1749285040640,-440.0,0.0002,2]
[364889456,1749285040649,-440.0,0.0002,2]
[364889458,1749285040659,-151.0,0.0002,2]
[364889460,1749285040668,-211.92855,0.0002,2]
[364889462,1749285040678,-440.0,0.0002,2]
[364889464,1749285040691,-440.0,0.0002,2]
[364889466,1749285040701,-440.0,0.0002,2]
[364889468,1749285040710,-440.0,0.0002,2]
[364889470,1749285040719,-440.0,0.0002,2]
[364889472,1749285040729,-13878.43,0.0002,2]
[364889474,1749285040738,-440.0,0.0002,2]
[364889476,1749285040747,-686.2,0.0002,2]
[364889478,1749285040758,-440.0,0.0002,2]
[364889480,1749285040768,-1205.32,0.0002,2]
[364889482,1749285040779,-440.0,0.0002,2]
[364889498,1749285040920,-440.0,0.0002,2]
[364889500,1749285040932,-508.92,0.0002,2]
[364889502,1749285040941,-440.0,0.0002,2]
[364889504,1749285040952,-440.0,0.0002,2]
[364889506,1749285040962,-495.49,0.0002,2]
[364889508,1749285040972,-440.0,0.0002,2]
[364889510,1749285040982,-440.0,0.0002,2]
[364889512,1749285040993,-440.0,0.0002,2]
[364889514,1749285041002,-943.93,0.0002,2]
[364889516,1749285041012,-440.0,0.0002,2]
[364889518,1749285041022,-151.0,0.0002,2]
[364889520,1749285041034,-440.0,0.0002,2]
[364889522,1749285041043,-257.352525,0.00020015,2]
[364889524,1749285041054,-260.0,0.00020015,2]
[364889526,1749285041064,-267.4,0.00020015,2]
[364889528,1749285041073,-260.0,0.00020017,2]
[364889530,1749285041083,-260.0,0.00020017,2]
[364889532,1749285041093,-1004.57619613,0.00020072,2]
[364889534,1749285041104,-160.0,0.00020088,2]
[364889536,1749285041113,-834.52263295,0.00020089,2]
[364889538,1749285041124,-423.90693687,0.00020089,2]
[364889540,1749285041133,-11851.94353573,0.00020089,2]
[364889542,1749285041143,-500.0,0.00020089,2]
[364889544,1749285041152,-229.56495552,0.000201,2]
[364889546,1749285041162,-151.0,0.000201,2]
[364889548,1749285041171,-500.0,0.000201,2]
[364889550,1749285041181,-151.0,0.000201,2]
[364889552,1749285041191,-1193.648715,0.00020136,3]
[364889554,1749285041200,-177.404,0.00020182,2]
[364889556,1749285041211,-197.457844,0.00020187,2]
[364889559,1749285041221,-1423.8136888,0.00020239,2]
[364889561,1749285041231,-279.2007,0.0002027,2]
[364889563,1749285041240,-151.0,0.0002027,2]
[364889565,1749285041249,-462.92,0.0002027,2]
[364889567,1749285041260,-440.0,0.0002027,2]
[364889568,1749285041271,-211.094335,0.0002027,2]
[364889570,1749285041280,-211.094335,0.0002027,2]
[364889572,1749285041290,-151.0,0.0002027,2]
[364889574,1749285041299,-151.0,0.0002027,2]
[364889576,1749285041308,-151.0,0.0002027,2]
[364889578,1749285041318,-151.0,0.0002027,2]
[364889580,1749285041327,-300.488491,0.0002027,2]
[364889582,1749285041336,-151.0,0.0002027,2]
[364889584,1749285041346,-500.0,0.00020272,2]
[364889587,1749285041355,-440.0,0.00020273,2]
[364889589,1749285041366,-440.0,0.00020273,2]
[364889590,1749285041375,-440.0,0.00020273,2]
[364889592,1749285041385,-440.0,0.00020273,2]
[364889594,1749285041394,-151.0,0.00020273,2]
[364889596,1749285041404,-440.0,0.00020273,2]
[364889598,1749285041413,-151.0,0.00020273,2]
[364889600,1749285041423,-440.0,0.00020273,2]
[364889602,1749285041434,-440.0,0.00020273,2]
[364889604,1749285041444,-440.0,0.00020273,2]
[364889606,1749285041454,-1276.04,0.00020273,2]
[364889608,1749285041464,-440.0,0.00020273,2]
[364889610,1749285041474,-440.0,0.00020273,2]
[364889612,1749285041483,-151.0,0.00020273,2]
[364889614,1749285041493,-440.0,0.00020273,2]
[364889616,1749285041503,-440.0,0.00020273,2]
[364889618,1749285041513,-440.0,0.00020273,2]
[364889620,1749285041522,-440.0,0.00020273,2]
[364889622,1749285041531,-440.0,0.00020273,2]
[364889624,1749285041540,-8163.83555711,0.00020273,2]
[364889635,1749285041633,-4747.49783594,0.00020273,2]
[364889638,1749285041650,-967.09660695,0.00020273,2]
[364889640,1749285041660,-440.0,0.00020273,2]
[364889642,1749285041669,-686.2,0.00020273,2]
[364889644,1749285041680,-440.0,0.00020273,2]
[364889646,1749285041692,-854.06662301,0.00020273,2]
[364889648,1749285041704,-351.25337699,0.00020273,2]
[364889650,1749285041714,-440.0,0.00020273,2]
[364889652,1749285041723,-440.0,0.00020273,2]
[364889654,1749285041733,-508.92,0.00020273,2]
[364889656,1749285041742,-440.0,0.00020273,2]
[364889658,1749285041751,-347.33502736,0.00020273,2]
[364889660,1749285041762,-495.49,0.00020273,2]
[364889662,1749285041772,-440.0,0.00020273,2]
[364889664,1749285041781,-440.0,0.00020273,2]
[364889666,1749285041790,-440.0,0.00020273,2]
[364889668,1749285041800,-943.93,0.00020273,2]
[364889670,1749285041810,-440.0,0.00020273,2]
[364889672,1749285041819,-151.0,0.00020273,2]
[364889674,1749285041829,-1000.0,0.00020304,2]
[364889676,1749285041838,-1004.57619613,0.00020314,3]
[364889678,1749285041848,-211.12,0.00020542,2]
[364889680,1749285041858,-151.0,0.00020543,2]
[364889682,1749285041868,-462.92,0.00020544,2]
[364889684,1749285041877,-151.0,0.00020544,2]
[364889686,1749285041887,-440.0,0.00020544,2]
[364889688,1749285041896,-240.540712,0.00020544,2]
[364889690,1749285041906,-151.0,0.00020544,2]
[364889692,1749285041915,-151.0,0.00020544,2]
[364889694,1749285041925,-151.0,0.00020544,2]
[364889696,1749285041935,-440.0,0.00020547,2]
[364889698,1749285041945,-440.0,0.00020547,2]
[364889700,1749285041954,-440.0,0.00020547,2]
[364889702,1749285041964,-440.0,0.00020547,2]
[364889704,1749285041973,-440.0,0.00020547,2]
[364889706,1749285041983,-440.0,0.00020547,2]
[364889708,1749285041992,-440.0,0.00020547,2]
[364889710,1749285042002,-221.1548484,0.00020547,2]
[364890124,1749285045957,-440.0,0.00019178,2]
[364890126,1749285045968,-440.0,0.00019452,2]
[364890128,1749285045978,-151.0,0.00019722,2]
[364890130,1749285045988,-440.0,0.00019726,2]
[364890132,1749285045997,-151.0,0.00019996,2]
[364890134,1749285046007,-571.92,0.0002,2]
[364890136,1749285046016,-96.07996995,0.000201,2]
[364893071,1749285079365,216.719492,0.00013699,2]
[364894160,1749285172753,345.05,0.00018,2]
[364894407,1749285212390,28800.0,0.00025479,120]
[364895080,1749285508805,2936.88,0.000219,60]
[364895191,1749285655388,-342.11648481,0.00018,3]
[364895193,1749285659018,-338.02726433,0.00018,3]
[364895194,1749285662599,-162.41875086,0.00018,3]
[364895381,1749285860165,3739.5677243,0.00017937,2]
[364895456,1749286031136,-160.0,0.00018491,2]
[364895457,1749286031162,-300.0,0.00018515,2]
[364895458,1749286031186,-300.0,0.00018515,2]
[364895459,1749286031209,-1200.0,0.00018516,2]
[364895460,1749286031232,-276.0,0.00018516,2]
[364895461,1749286031254,-300.0,0.00018516,2]
[364895462,1749286031276,-300.0,0.00018516,2]
[364895463,1749286031297,-300.0,0.00018516,2]
[364895464,1749286031319,-500.0,0.00018517,2]
[364895465,1749286031342,-325.75200075,0.00018517,2]
[364895466,1749286031366,-500.0,0.00018517,2]
[364895467,1749286031527,-178.96501656,0.00018517,2]
[364895468,1749286031549,-431.51522442,0.00018517,2]
[364895469,1749286031570,-316.7602431,0.00018517,2]
[364895470,1749286031591,-445.15828805,0.00018517,2]
[364895471,1749286031616,-535.0,0.00018517,2]
[364895472,1749286031637,-3882.4415479,0.00018518,2]
[364895482,1749286058051,-158.2113714,0.00018,2]
[364895483,1749286059723,-340.74030046,0.00018,2]
[364895485,1749286064181,-304.04355231,0.00018,2]
[364895487,1749286067927,205.883517,0.00013699,2]
[364895488,1749286068549,-157.56091234,0.00018,2]
[364895491,1749286072117,-339.11055529,0.00018,2]
[364895493,1749286074629,-163.82220355,0.00018,2]
[364895495,1749286078516,-203.96663474,0.00018,2]
[364895497,1749286081450,-207.41661997,0.00018,2]
[364895498,1749286082995,300.0,0.00017999,2]
[364895499,1749286084809,-151.47562089,0.00018,2]
[364895500,1749286086967,-193.3401252,0.00018,2]
[364895502,1749286092305,-194.91840564,0.00018,2]
[364895504,1749286095063,-301.4455525,0.00018,2]
[364895506,1749286097991,-158.18523208,0.00018,2]
[364895507,1749286100488,-324.2273783,0.00018,2]
[364895511,1749286106990,-213.62075488,0.00018,2]
[364895524,1749286141950,-45735.99637367,0.00018,2]
[364895525,1749286141982,-21017.5584521,0.00018518,2]
[364895526,1749286142005,-341.47744302,0.00018834,2]
[364895527,1749286142027,-440.0,0.00019178,2]
[364895528,1749286142050,-476.48,0.00019178,2]
[364895529,1749286142072,-440.0,0.00019178,2]
[364895530,1749286142095,-440.0,0.00019178,2]
[364895531,1749286142119,-431.10680584,0.00019178,2]
[364895532,1749286142141,-380.0,0.00019178,2]
[364895533,1749286142164,-423.76811501,0.00019178,2]
[364895534,1749286142186,-267.85071538,0.00019178,2]
[364895535,1749286142211,-443.7178969,0.00019178,2]
[364895536,1749286142234,-440.0,0.00019178,2]
[364895537,1749286142256,-440.0,0.00019178,2]
[364895538,1749286142287,-440.0,0.00019178,2]
[364895539,1749286142311,-440.0,0.00019178,2]
[364895540,1749286142467,-440.0,0.00019178,2]
[364895541,1749286142493,-440.0,0.00019178,2]
[364895542,1749286142519,-440.0,0.00019178,2]
[364895543,1749286142544,-440.0,0.00019178,2]
[364895544,1749286142567,-440.0,0.00019178,2]
[364895545,1749286142590,-440.0,0.00019178,2]
[364895546,1749286142615,-440.0,0.00019178,2]
[364895547,1749286142640,-1010.2,0.00019178,2]
[364895548,1749286142663,-440.0,0.00019178,2]
[364895549,1749286142688,-311.27431669,0.00019178,2]
[364895550,1749286142711,-440.0,0.00019178,2]
[364895551,1749286142736,-440.0,0.00019178,2]
[364895552,1749286142761,-440.0,0.00019178,2]
[364895553,1749286142786,-440.0,0.00019178,2]
[364895554,1749286142811,-440.0,0.00019178,2]
[364895555,1749286142837,-444.32761816,0.00019178,2]
[364895556,1749286142861,-787.49,0.00019178,2]
[364895557,1749286142884,-440.0,0.00019178,2]
[364895558,1749286142907,-494.43680875,0.00019178,2]
[364895559,1749286142930,-440.0,0.00019178,2]
[364895560,1749286142955,-440.0,0.00019178,2]
[364895561,1749286142979,-440.0,0.00019178,2]
[364895562,1749286143005,-440.0,0.00019178,2]
[364895563,1749286143034,-440.0,0.00019178,2]
[364895564,1749286143061,-440.0,0.00019178,2]
[364895565,1749286143089,-443.53,0.00019178,2]
[364895566,1749286143115,-440.0,0.00019178,2]
[364895567,1749286143143,-440.0,0.00019178,2]
[364895568,1749286143169,-440.0,0.00019178,2]
[364895569,1749286143198,-440.0,0.00019178,2]
[364895570,1749286143224,-440.0,0.00019178,2]
[364895571,1749286143250,-440.0,0.00019178,2]
[364895572,1749286143275,-440.0,0.00019178,2]
[364895573,1749286143301,-479.19912043,0.00019178,2]
[364895574,1749286143325,-440.0,0.00019178,2]
[364895575,1749286143350,-390.0,0.00019178,2]
[364895576,1749286143375,-440.0,0.00019178,2]
[364895577,1749286143400,-440.0,0.00019178,2]
[364895578,1749286143423,-440.0,0.00019178,2]
[364895579,1749286143449,-440.0,0.00019178,2]
[364895580,1749286143474,-440.0,0.00019178,2]
[364895581,1749286143499,-440.0,0.00019178,2]
[364895582,1749286143523,-440.0,0.00019178,2]
[364895583,1749286143547,-440.0,0.00019178,2]
[364895584,1749286143571,-440.0,0.00019178,2]
[364895585,1749286143594,-440.0,0.00019178,2]
[364895586,1749286143617,-440.0,0.00019178,2]
[364895587,1749286143640,-440.0,0.00019178,2]
[364895588,1749286143663,-440.0,0.00019178,2]
[364895589,1749286143690,-972.55,0.00019178,2]
[364895590,1749286143714,-440.0,0.00019178,2]
[364895591,1749286143739,-440.0,0.00019178,2]
[364895592,1749286143763,-440.0,0.00019178,2]
[364895593,1749286143787,-440.0,0.00019178,2]
[364895594,1749286143811,-440.0,0.00019178,2]
[364895595,1749286143835,-440.0,0.00019178,2]
[364895596,1749286143858,-440.0,0.00019178,2]
[364895597,1749286143882,-440.0,0.00019178,2]
[364895598,1749286143907,-440.0,0.00019178,2]
[364895599,1749286143931,-10987.09,0.00019178,2]
[364895600,1749286143958,-440.0,0.00019178,2]
[364895601,1749286143983,-440.0,0.00019178,2]
[364895602,1749286144007,-440.0,0.00019178,2]
[364895603,1749286144034,-543.24,0.00019178,2]
[364895604,1749286144059,-440.0,0.00019178,2]
[364895605,1749286144088,-183.123772,0.00019178,2]
[364895606,1749286144111,-476.48,0.00019452,2]
[364895607,1749286144135,-440.0,0.00019452,2]
[364895608,1749286144159,-440.0,0.00019452,2]
[364895609,1749286144184,-440.0,0.00019452,2]
[364895610,1749286144210,-440.0,0.00019452,2]
[364895611,1749286144235,-440.0,0.00019452,2]
[364895612,1749286144260,-440.0,0.00019452,2]
[364895613,1749286144284,-440.0,0.00019452,2]
[364895614,1749286144311,-440.0,0.00019452,2]
[364895615,1749286144336,-1010.2,0.00019452,2]
[364895616,1749286144362,-440.0,0.00019452,2]
[364895617,1749286144386,-440.0,0.00019452,2]
[364895618,1749286144411,-440.0,0.00019452,2]
[364895619,1749286144436,-787.49,0.00019452,2]
[364895620,1749286144460,-440.0,0.00019452,2]
[364895621,1749286144484,-440.0,0.00019452,2]
[364895622,1749286144508,-440.0,0.00019452,2]
[364895623,1749286144531,-440.0,0.00019452,2]
[364895624,1749286144556,-440.0,0.00019452,2]
[364895625,1749286144583,-440.0,0.00019452,2]
[364895626,1749286144606,-569.05,0.00019452,2]
[364895627,1749286144629,-440.0,0.00019452,2]
[364895628,1749286144652,-440.0,0.00019452,2]
[364895629,1749286144676,-440.0,0.00019452,2]
[364895630,1749286144700,-440.0,0.00019452,2]
[364895631,1749286144723,-440.0,0.00019452,2]
[364895632,1749286144745,-199.61656109,0.00019452,2]
[364895633,1749286144771,-440.0,0.00019452,2]
[364895634,1749286144797,-972.55,0.00019452,2]
[364895635,1749286144820,-189.54,0.00019452,2]
[364895636,1749286144843,-440.0,0.00019452,2]
[364895637,1749286144866,-440.0,0.00019452,2]
[364895638,1749286144890,-10987.09,0.00019452,2]
[364895639,1749286144915,-440.0,0.00019452,2]
[364895640,1749286144940,-543.24,0.00019452,2]
[364895641,1749286144963,-152.040399,0.00019722,2]
[364895642,1749286144986,-476.48,0.00019726,2]
[364895643,1749286145008,-440.0,0.00019726,2]
[364895644,1749286145035,-440.0,0.00019726,2]
[364895645,1749286145060,-440.0,0.00019726,2]
[364895646,1749286145085,-440.0,0.00019726,2]
[364895647,1749286145110,-440.0,0.00019726,2]
[364895648,1749286145136,-440.0,0.00019726,2]
[364895649,1749286145159,-437.25,0.00019726,2]
[364895650,1749286145185,-440.0,0.00019726,2]
[364895651,1749286145215,-1010.2,0.00019726,2]
[364895652,1749286145240,-440.0,0.00019726,2]
[364895653,1749286145265,-440.0,0.00019726,2]
[364895654,1749286145291,-440.0,0.00019726,2]
[364895655,1749286145317,-787.49,0.00019726,2]
[364895656,1749286145342,-440.0,0.00019726,2]
[364895657,1749286145366,-440.0,0.00019726,2]
[364895658,1749286145392,-440.0,0.00019726,2]
[364895659,1749286145416,-440.0,0.00019726,2]
[364895660,1749286145440,-288.80174403,0.00019726,2]
[364895661,1749286145581,-440.0,0.00019726,2]
[364895662,1749286145607,-440.0,0.00019726,2]
[364895663,1749286145630,-440.0,0.00019726,2]
[364895664,1749286145653,-275.25886446,0.00019726,2]
[364895665,1749286145676,-245.54,0.00019726,2]
[364895666,1749286145698,-440.0,0.00019726,2]
[364895667,1749286145722,-440.0,0.00019726,2]
[364895669,1749286145748,-972.55,0.00019726,2]
[364895671,1749286145773,-440.0,0.00019726,2]
[364895673,1749286145796,-10987.09,0.00019726,2]
[364895674,1749286145821,-440.0,0.00019726,2]
[364895675,1749286145846,-543.24,0.00019726,2]
[364895676,1749286145870,-207.4,0.00019921,2]
[364895677,1749286145894,-506.96,0.0001999,3]
[364895678,1749286145918,-476.48,0.0002,2]
[364895679,1749286145941,-440.0,0.0002,2]
[364895680,1749286145966,-440.0,0.0002,2]
[364895681,1749286145991,-440.0,0.0002,2]
[364895682,1749286146014,-440.0,0.0002,2]
[364895683,1749286146041,-440.0,0.0002,2]
[364895684,1749286146066,-440.0,0.0002,2]
[364895685,1749286146092,-440.0,0.0002,2]
[364895686,1749286146116,-1010.2,0.0002,2]
[364895687,1749286146141,-440.0,0.0002,2]
[364895688,1749286146165,-232.84,0.0002,2]
[364895689,1749286146190,-440.0,0.0002,2]
[364895690,1749286146218,-787.49,0.0002,2]
[364895691,1749286146242,-440.0,0.0002,2]
[364895692,1749286146266,-440.0,0.0002,2]
[364895693,1749286146293,-440.0,0.0002,2]
[364895694,1749286146316,-440.0,0.0002,2]
[364895695,1749286146341,-440.0,0.0002,2]
[364895696,1749286146368,-228.09363616,0.0002,2]
[364895697,1749286146392,-440.0,0.0002,2]
[364895698,1749286146414,-440.0,0.0002,2]
[364895699,1749286146437,-440.0,0.0002,2]
[364895700,1749286146464,-972.55,0.0002,2]
[364895701,1749286146488,-440.0,0.0002,2]
[364895702,1749286146512,-151.0,0.0002,2]
[364895703,1749286146535,-10987.09,0.0002,2]
[364895704,1749286146560,-440.0,0.0002,2]
[364895705,1749286146585,-543.24,0.0002,2]
[364895706,1749286146661,300.0,0.00017999,2]
[364895707,1749286146716,415.0,0.00019639,2]
[364895708,1749286151265,156.60924,0.0002,2]
[364895709,1749286153711,440.0,0.00019178,2]
[364895710,1749286153959,440.0,0.00019452,2]
[364895711,1749286154210,440.0,0.00019726,2]
[364895712,1749286154453,440.0,0.0002,2]
[364895715,1749286160963,440.0,0.00019178,2]
[364895716,1749286161211,214.26973513,0.00019452,2]
[364895718,1749286166721,440.0,0.00019178,2]
[364895719,1749286166998,440.0,0.00019452,2]
[364895720,1749286167238,440.0,0.00019726,2]
[364895721,1749286167504,440.0,0.0002,2]
[364895724,1749286173220,440.0,0.00019178,2]
[364895725,1749286173471,440.0,0.00019452,2]
[364895726,1749286173738,440.0,0.00019726,2]
[364895727,1749286173981,440.0,0.0002,2]
[364895732,1749286181844,440.0,0.00019178,2]
[364895733,1749286182089,440.0,0.00019452,2]
[364895734,1749286182335,195.9,0.00019726,2]
[364895737,1749286187464,841.83,0.00019178,2]
[364895738,1749286187724,841.83,0.00019452,2]
[364895739,1749286187969,841.83,0.00019726,2]
[364895741,1749286188265,841.83,0.0002,2]
[364895742,1749286188822,440.0,0.00019178,2]
[364895743,1749286189076,440.0,0.00019452,2]
[364895744,1749286189332,440.0,0.00019726,2]
[364895745,1749286189578,440.0,0.0002,2]
[364895748,1749286193725,440.0,0.00019178,2]
[364895749,1749286193975,440.0,0.00019452,2]
[364895752,1749286197289,656.25,0.00019178,2]
[364895753,1749286197344,153.30079669,0.00019988,2]
[364895754,1749286197488,656.25,0.00019452,2]
[364895755,1749286197742,656.25,0.00019726,2]
[364895756,1749286197998,656.25,0.0002,2]
[364895759,1749286204115,570.37528398,0.00019178,2]
[364895761,1749286207149,207.4,0.00019921,2]
[364895765,1749286215338,440.0,0.00019178,2]
[364895766,1749286215579,440.0,0.00019452,2]
[364895767,1749286215838,440.0,0.00019726,2]
[364895769,1749286216083,440.0,0.0002,2]
[364895770,1749286218404,440.0,0.00019178,2]
[364895771,1749286218636,440.0,0.00019452,2]
[364895773,1749286219246,393.7751516,0.00019726,2]
[364895777,1749286232000,-151.0,0.00020088,2]
[364895778,1749286232011,-151.0,0.00020088,2]
[364895779,1749286232022,-151.0,0.00020088,2]
[364895781,1749286232033,-151.0,0.00020088,2]
[364895782,1749286232043,-151.0,0.00020088,2]
[364895783,1749286232054,-160.0,0.00020101,2]
[364895784,1749286232064,-842.5625,0.00020101,2]
[364895785,1749286232075,-160.0,0.00020101,2]
[364895786,1749286232086,-11851.94353573,0.00020101,2]
[364895787,1749286232096,-834.52263295,0.00020101,2]
[364895788,1749286232106,-213.01382694,0.00020101,2]
[364895789,1749286232116,-153.545985,0.00020136,2]
[364895790,1749286232126,-151.0,0.00020136,2]
[364895791,1749286232137,-151.0,0.00020136,2]
[364895792,1749286232146,-1074.283844,0.00020136,3]
[364895793,1749286232156,-154.07897808,0.00020173,2]
[364895794,1749286232166,-177.404,0.00020176,2]
[364895795,1749286232176,-205.883517,0.00020187,2]
[364895796,1749286232186,-420.0,0.00020191,2]
[364895797,1749286232196,-3753.30626447,0.0002025,2]
[364895868,1749286238111,-417.86172549,0.0002025,2]